[Event "56th Rubinstein Memorial C 2020"]
[Site "Polanica Zdroj"]
[Date "2020.08.17"]
[Round "3.15"]
[White "Vanduyfhuys, Igor"]
[Black "Szopa, Emilia"]
[Result "0-1"]
[ECO "B33"]
[WhiteElo "1776"]
[BlackElo "1628"]
[Annotator "NA"]
[PlyCount "104"]
[EventDate "2020.08.15"]
[EventType "swiss"]
[EventCountry "POL"]
[SourceTitle "playchess.com"]
[Source "ChessBase"]
[SourceQuality "1"]
[TimeControl "40/5400+30:1800+30"]

1. e4 {[%emt 0:00:00]} c5 {[%emt 0:00:00]} 2. Nf3 {[%emt 0:00:00]} Nc6 {[%emt 0:00:00]} 3. d4 {[%emt 0:00:00]} cxd4 {[%emt 0:00:10]} 4. Nxd4 {[%emt 0:00:01]} Nf6 {[%emt 0:00:22]} 5. Nc3 {[%emt 0:00:42]} e5 {[%emt 0:00:15]} 6. Ndb5 {[%emt 0:00:39]} d6 {[%emt 0:00:23]} 7. Bg5 {[%emt 0:00:24]} a6 {[%emt 0:00:24]} 8. Na3 {[%emt 0:00:22]} b5 {[%emt 0:00:21]} 9. Nd5 {[%emt 0:00:34]} Be7 {[%emt 0:00:11]} 10. Bxf6 {[%emt 0:00:23]} Bxf6 {[%emt 0:00:07]} 11. c4 {[%emt 0:00:41]} b4 {[%emt 0:00:22]} 12. Nc2 {[%emt 0:00:19]} a5 {[%emt 0:00:52]} 13. g3 {[%emt 0:01:01]} Bg5 {[%emt 0:00:40]} 14. Bg2 {[%emt 0:00:30]} O-O {[%emt 0:01:25]} 15. O-O {[%emt 0:00:15]} Be6 {[%emt 0:01:28]} 16. Qd3 {[%emt 0:01:26]} Ne7 {[%emt 0:01:22]} 17. Nce3 {[%emt 0:00:28]} Nxd5 {[%emt 0:02:38]} 18. Nxd5 {[%emt 0:00:12]} Rb8 {[%emt 0:01:56]} 19. Rfd1 {[%emt 0:01:38]} Kh8 {[%emt 0:05:19]} 20. h4 {[%emt 0:00:51]} Be7 {[%emt 0:01:26]} 21. b3 {[%emt 0:00:30]} Bxd5 {[%emt 0:00:49]} 22. Qxd5 {[%emt 0:00:21]} Rc8 {[%emt 0:05:49]} 23. Kf1 {[%emt 0:00:56]} Rc5 {[%emt 0:00:52]} 24. Qd3 {[%emt 0:01:08]} Qc8 {[%emt 0:02:03]} 25. a3 {[%emt 0:00:40]} bxa3 {[%emt 0:03:35]} 26. Rxa3 {[%emt 0:00:07]} f5 {[%emt 0:02:06]} 27. Qd2 {[%emt 0:02:08]} f4 {[%emt 0:01:58]} 28. Kg1 {[%emt 0:00:44]} f3 {[%emt 0:02:01]} 29. Bf1 {[%emt 0:00:31]} Qg4 {[%emt 0:03:07]} 30. Rxa5 {[%emt 0:02:06]} Rxa5 {[%emt 0:01:44]} 31. Qxa5 {[%emt 0:00:07]} Bxh4 {[%emt 0:01:09]} 32. Kh2 {[%emt 0:00:23]} Bd8 {[%emt 0:21:41]} 33. Qd5 {[%emt 0:00:19]} Be7 {[%emt 0:04:15]} 34. Bh3 {[%emt 0:01:43]} Qh5 {[%emt 0:02:02]} 35. b4 {[%emt 0:00:37]} Qe8 {[%emt 0:09:32]} 36. b5 {[%emt 0:00:28]} Qa8 {[%emt 0:05:03]} 37. Qc6 {[%emt 0:01:37]} Rb8 {[%emt 0:07:32]} 38. Qc7 {[%emt 0:03:16]} Rb7 {[%emt 0:02:59]} 39. Ra1 {[%emt 0:01:59]} Qb8 {[%emt 0:00:25]} 40. Qxb8+ {[%emt 0:00:00]} Rxb8 {[%emt 0:00:00]} 41. Ra7 {[%emt 0:00:43]} Bd8 {[%emt 0:02:28]} 42. Rd7 {[%emt 0:00:05]} Bb6 {[%emt 0:00:08]} 43. Kg1 {[%emt 0:00:19]} Bc5 {[%emt 0:00:13]} 44. Bg4 {[%emt 0:00:19]} Rf8 {[%emt 0:01:10]} 45. Rc7 {[%emt 0:01:02]} g6 {[%emt 0:01:10]} 46. Rc6 {[%emt 0:00:09]} h5 {[%emt 0:00:53]} 47. Be6 {[%emt 0:00:06]} Ra8 {[%emt 0:04:31]} 48. Bh3 {[%emt 0:05:04]} Ra1+ {[%emt 0:01:54]} 49. Bf1 {[%emt 0:00:03]} Ra2 {[%emt 0:00:38]} 50. Bd3 {[%emt 0:01:27]} Bxf2+ {[%emt 0:00:24]} 51. Kf1 {[%emt 0:00:07]} Bxg3 {[%emt 0:00:49]} 52. Rxd6 {[%emt 0:01:41]} Ra1+ {[%emt 0:00:14]} 0-1

[Event "56th Rubinstein Memorial C 2020"]
[Site "Polanica Zdroj"]
[Date "2020.08.17"]
[Round "3.16"]
[White "Komendecki, Antoni"]
[Black "Grzadka, Artur"]
[Result "1-0"]
[ECO "B13"]
[WhiteElo "1631"]
[BlackElo "1775"]
[Annotator "NA"]
[PlyCount "81"]
[EventDate "2020.08.15"]
[EventType "swiss"]
[EventCountry "POL"]
[SourceTitle "playchess.com"]
[Source "ChessBase"]
[SourceQuality "1"]
[TimeControl "40/5400+30:1800+30"]

1. e4 c6 2. d4 d5 3. exd5 cxd5 4. Bd3 Nc6 5. c3 Qc7 6. h3 Nf6 7. Nf3 g6 8. O-O Bg7 9. Re1 Bf5 10. Be2 O-O 11. Be3 Rac8 12. Nbd2 a6 13. Qc1 b5 14. Nb3 Qb6 15. Nc5 Ne4 16. Nh4 Rfd8 17. Nxf5 gxf5 18. Bd3 e6 19. Bh6 Bxh6 20. Qxh6 Nxc5 21. dxc5 Qxc5 22. Re3 Ne7 23. Rg3+ Ng6 24. h4 Qf8 25. Qg5 f6 26. Qe3 Kf7 27. Qa7+ Qe7 28. Qxa6 Ra8 29. Qb6 Rdb8 30. Qe3 Qf8 31. Re1 Ra6 32. a4 f4 33. Bxg6+ hxg6 34. Qxf4 Rxa4 35. Qc7+ Kg8 36. Rxg6+ Kh8 37. Rxf6 Qxf6 38. Qxb8+ Kh7 39. Qxb5 Rxh4 40. Qd7+ Kh8 41. Rxe6 1-0

[Event "56th Rubinstein Memorial C 2020"]
[Site "Polanica Zdroj"]
[Date "2020.08.18"]
[Round "4.1"]
[White "Kozlowski, Pawel"]
[Black "Adamczewski, Maciej"]
[Result "1/2-1/2"]
[ECO "C00"]
[WhiteElo "1913"]
[BlackElo "2045"]
[Annotator "ChessBase"]
[PlyCount "88"]
[EventDate "2020.08.15"]
[EventType "swiss"]
[EventCountry "POL"]
[SourceTitle "playchess.com"]
[Source "ChessBase"]
[SourceQuality "1"]
[TimeControl "40/5400+30:1800+30"]

1. e4 {[%emt 0:00:00]} e6 {[%emt 0:02:31]} 2. d4 {[%emt 0:00:00]} d5 {[%emt 0:00:06]} 3. Bd3 {[%emt 0:00:00]} dxe4 {[%emt 0:00:10]} 4. Bxe4 {[%emt 0:00:00]} Nf6 {[%emt 0:00:09]} 5. Bf3 {[%emt 0:00:00]} c5 {[%emt 0:00:14]} 6. Ne2 {[%emt 0:00:00]} Nc6 {[%emt 0:00:19]} 7. Be3 {[%emt 0:00:07]} Be7 {[%emt 0:00:58]} 8. Nbc3 {[%emt 0:01:57]} O-O {[%emt 0:00:42]} 9. O-O {[%emt 0:24:27]} Qa5 {[%emt 0:00:49]} 10. Qc1 {[%emt 0:25:37]} cxd4 {[%emt 0:24:46]} 11. Nxd4 {[%emt 0:00:17]} Ne5 {[%emt 0:01:15]} 12. Be2 {[%emt 0:07:29]} Ng6 {[%emt 0:07:38]} 13. Nb3 {[%emt 0:05:20]} Qe5 {[%emt 0:00:32]} 14. Bd4 {[%emt 0:02:25]} Qb8 {[%emt 0:00:31]} 15. Bf3 {[%emt 0:04:04]} Nh4 {[%emt 0:02:56]} 16. Qe3 {[%emt 0:04:35]} Nf5 {[%emt 0:06:03]} 17. Qe2 {[%emt 0:00:17]} Nxd4 {[%emt 0:00:07]} 18. Nxd4 {[%emt 0:00:02]} Bd6 {[%emt 0:03:03]} 19. h3 {[%emt 0:00:47]} a6 {[%emt 0:00:17]} 20. Ne4 {[%emt 0:01:58]} Be5 {[%emt 0:01:05]} 21. Nxf6+ {[%emt 0:01:51]} Bxf6 {[%emt 0:00:21]} 22. Rad1 {[%emt 0:00:22]} Qc7 {[%emt 0:00:27]} 23. c3 {[%emt 0:00:57]} Bd7 {[%emt 0:00:42]} 24. Qe4 {[%emt 0:05:17]} Rab8 {[%emt 0:03:02]} 25. Rfe1 {[%emt 0:02:14]} Rfd8 {[%emt 0:05:03]} 26. a3 {[%emt 0:01:51]} g6 {[%emt 0:05:12]} 27. Qc2 {[%emt 0:04:45]} Qb6 {[%emt 0:01:57]} 28. Ne2 {[%emt 0:01:34]} Bb5 {[%emt 0:01:33]} 29. Rxd8+ {[%emt 0:00:55]} Rxd8 {[%emt 0:00:23]} 30. Rd1 {[%emt 0:00:23]} Rxd1+ {[%emt 0:01:56]} 31. Qxd1 {[%emt 0:00:01]} Kg7 {[%emt 0:00:57]} 32. Qd2 {[%emt 0:01:42]} Bc4 {[%emt 0:00:41]} 33. Ng3 {[%emt 0:01:09]} Be5 {[%emt 0:01:47]} 34. Nf1 {[%emt 0:00:40]} h5 {[%emt 0:02:38]} 35. Ne3 {[%emt 0:01:05]} Bb5 {[%emt 0:00:55]} 36. Be2 {[%emt 0:00:30]} Qc5 {[%emt 0:01:34]} 37. Bxb5 {[%emt 0:01:13]} Qxb5 {[%emt 0:00:08]} 38. Nf1 {[%emt 0:01:33]} Qb3 {[%emt 0:00:47]} 39. g3 {[%emt 0:00:51]} b5 {[%emt 0:00:16]} 40. Ne3 {[%emt 0:00:00]} Qa4 {[%emt 0:00:00]} 41. Qc2 {[%emt 0:00:52]} Qa5 {[%emt 0:07:55]} 42. Qe4 {[%emt 0:00:31]} Qc7 {[%emt 0:00:17]} 43. Kg2 {[%emt 0:10:23]} Qd6 {[%emt 0:01:52]} 44. a4 {[%emt 0:02:44]} Bf6 {[%emt 0:08:16]} 1/2-1/2

[Event "56th Rubinstein Memorial C 2020"]
[Site "Polanica Zdroj"]
[Date "2020.08.18"]
[Round "4.2"]
[White "Walkusz, Witoslaw"]
[Black "Podgorski, Maciej"]
[Result "0-1"]
[ECO "B51"]
[WhiteElo "2092"]
[BlackElo "1810"]
[Annotator "ChessBase"]
[PlyCount "68"]
[EventDate "2020.08.15"]
[EventType "swiss"]
[EventCountry "POL"]
[SourceTitle "playchess.com"]
[Source "ChessBase"]
[SourceQuality "1"]
[TimeControl "40/5400+30:1800+30"]

1. e4 c5 {[%emt 0:00:00]} 2. Nf3 {[%emt 0:00:00]} d6 {[%emt 0:00:00]} 3. Bb5+ {[%emt 0:00:00]} Nd7 {[%emt 0:00:11]} 4. a4 {[%emt 0:00:00]} a6 {[%emt 0:00:34]} 5. Bc4 {[%emt 0:00:06]} e6 {[%emt 0:00:34]} 6. Qe2 {[%emt 0:02:12]} Ngf6 {[%emt 0:00:54]} 7. d3 {[%emt 0:01:43]} Be7 {[%emt 0:03:31]} 8. O-O {[%emt 0:00:05]} b6 {[%emt 0:04:08]} 9. h3 {[%emt 0:07:51]} Bb7 {[%emt 0:01:07]} 10. Nbd2 {[%emt 0:04:28]} Qc7 {[%emt 0:03:02]} 11. c3 {[%emt 0:03:52]} O-O-O {[%emt 0:06:37]} 12. d4 {[%emt 0:02:57]} Nb8 {[%emt 0:05:41]} 13. e5 {[%emt 0:13:09]} Nh5 {[%emt 0:05:29]} 14. exd6 {[%emt 0:15:35]} Bxd6 {[%emt 0:07:39]} 15. Ne4 {[%emt 0:00:39]} Bf4 {[%emt 0:06:23]} 16. dxc5 {[%emt 0:04:30]} bxc5 {[%emt 0:00:56]} 17. b4 {[%emt 0:14:51]} Bxc1 {[%emt 0:04:10]} 18. Raxc1 {[%emt 0:01:29]} Nf4 {[%emt 0:13:11]} 19. Qe3 {[%emt 0:01:16]} Nd7 {[%emt 0:01:21]} 20. Rfd1 {[%emt 0:07:18]} Nb6 {[%emt 0:02:46]} 21. Bb3 {[%emt 0:02:45]} c4 {[%emt 0:02:50]} 22. Ba2 {[%emt 0:06:17]} Nbd5 {[%emt 0:03:06]} 23. Qe1 {[%emt 0:04:38]} Nd3 {[%emt 0:04:29]} 24. Rxd3 {[%emt 0:00:04]} cxd3 {[%emt 0:00:04]} 25. Bxd5 {[%emt 0:00:10]} Rxd5 {[%emt 0:03:20]} 26. c4 {[%emt 0:00:14]} Rd7 {[%emt 0:11:41]} 27. c5 {[%emt 0:00:05]} Bc6 {[%emt 0:05:35]} 28. b5 {[%emt 0:01:38]} Bxe4 {[%emt 0:00:58]} 29. Qxe4 {[%emt 0:00:18]} Rd5 {[%emt 0:00:43]} 30. b6 {[%emt 0:00:43]} Qc6 {[%emt 0:01:22]} 31. Qc4 {[%emt 0:03:30]} Kb7 {[%emt 0:01:18]} 32. Nd4 {[%emt 0:00:16]} Qxc5 {[%emt 0:00:46]} 33. Qxc5 {[%emt 0:02:59]} Rxc5 {[%emt 0:00:05]} 34. Rd1 {[%emt 0:00:42]} Rd8 {[%emt 0:01:12]} 0-1

[Event "56th Rubinstein Memorial C 2020"]
[Site "Polanica Zdroj"]
[Date "2020.08.18"]
[Round "4.3"]
[White "Budnik, Mateusz"]
[Black "Grot, Blazej"]
[Result "1-0"]
[ECO "A05"]
[WhiteElo "2033"]
[BlackElo "1768"]
[Annotator "ChessBase"]
[PlyCount "71"]
[EventDate "2020.08.15"]
[EventType "swiss"]
[EventCountry "POL"]
[SourceTitle "playchess.com"]
[Source "ChessBase"]
[SourceQuality "1"]
[TimeControl "40/5400+30:1800+30"]

1. Nf3 {[%emt 0:00:00]} Nf6 {[%emt 0:00:00]} 2. b3 {[%emt 0:00:00]} d5 {[%emt 0:00:22]} 3. Bb2 {[%emt 0:00:00]} e6 {[%emt 0:00:30]} 4. e3 {[%emt 0:00:04]} c5 {[%emt 0:00:13]} 5. Be2 {[%emt 0:00:40]} Bd6 {[%emt 0:01:01]} 6. O-O {[%emt 0:00:13]} Nc6 {[%emt 0:00:28]} 7. Bb5 {[%emt 0:00:14]} Qc7 {[%emt 0:05:04]} 8. Bxc6+ {[%emt 0:02:22]} bxc6 {[%emt 0:00:34]} 9. d3 {[%emt 0:00:57]} e5 {[%emt 0:01:17]} 10. e4 {[%emt 0:02:41]} O-O {[%emt 0:02:39]} 11. Re1 {[%emt 0:04:18]} Re8 {[%emt 0:01:57]} 12. Nbd2 {[%emt 0:00:51]} Bd7 {[%emt 0:06:59]} 13. Nf1 {[%emt 0:03:14]} Rad8 {[%emt 0:02:49]} 14. Ng3 {[%emt 0:01:39]} Bc8 {[%emt 0:09:54]} 15. Qd2 {[%emt 0:03:33]} Qb8 {[%emt 0:04:45]} 16. h3 {[%emt 0:03:34]} c4 {[%emt 0:13:30]} 17. Qc1 {[%emt 0:10:17]} dxe4 {[%emt 0:07:25]} 18. dxe4 {[%emt 0:03:02]} Bc5 {[%emt 0:01:46]} 19. Ba3 {[%emt 0:02:37]} Qb6 {[%emt 0:03:33]} 20. Bxc5 {[%emt 0:01:28]} Qxc5 {[%emt 0:01:05]} 21. Qe3 {[%emt 0:00:50]} Qb4 {[%emt 0:03:55]} 22. Qxa7 {[%emt 0:01:49]} Qc3 {[%emt 0:00:24]} 23. Qc5 {[%emt 0:04:19]} Qxc2 {[%emt 0:02:58]} 24. Rec1 {[%emt 0:05:34]} Qb2 {[%emt 0:04:51]} 25. Qxc4 {[%emt 0:00:37]} Be6 {[%emt 0:00:26]} 26. Qc2 {[%emt 0:01:34]} Qa3 {[%emt 0:01:28]} 27. Nxe5 {[%emt 0:02:51]} h5 {[%emt 0:01:45]} 28. Nf3 {[%emt 0:02:35]} Qa5 {[%emt 0:01:47]} 29. Rd1 {[%emt 0:00:53]} c5 {[%emt 0:01:46]} 30. Rxd8 {[%emt 0:00:21]} Rxd8 {[%emt 0:00:05]} 31. e5 {[%emt 0:01:05]} Nd5 {[%emt 0:00:47]} 32. Ng5 {[%emt 0:00:51]} Nf4 {[%emt 0:01:11]} 33. Qh7+ {[%emt 0:00:57]} Kf8 {[%emt 0:00:10]} 34. Qh8+ {[%emt 0:01:08]} Ke7 {[%emt 0:00:06]} 35. Qxg7 {[%emt 0:00:07]} Nd3 {[%emt 0:00:34]} 36. Qf6+ {[%emt 0:00:14]} 1-0

[Event "56th Rubinstein Memorial C 2020"]
[Site "Polanica Zdroj"]
[Date "2020.08.18"]
[Round "4.4"]
[White "Rudecki, Bartosz"]
[Black "Komendecki, Jacek"]
[Result "0-1"]
[ECO "B27"]
[WhiteElo "1831"]
[BlackElo "2024"]
[Annotator "ChessBase"]
[PlyCount "44"]
[EventDate "2020.08.15"]
[EventType "swiss"]
[EventCountry "POL"]
[SourceTitle "playchess.com"]
[Source "ChessBase"]
[SourceQuality "1"]
[TimeControl "40/5400+30:1800+30"]

1. e4 {[%emt 0:00:00]} c5 {[%emt 0:00:00]} 2. Nf3 {[%emt 0:00:00]} g6 {[%emt 0:00:00]} 3. g3 {[%emt 0:02:26]} Bg7 {[%emt 0:00:00]} 4. Bg2 {[%emt 0:00:07]} Nc6 {[%emt 0:00:14]} 5. O-O {[%emt 0:00:21]} e5 {[%emt 0:00:17]} 6. Nc3 {[%emt 0:06:20]} Nge7 {[%emt 0:00:11]} 7. Nd5 {[%emt 0:01:04]} O-O {[%emt 0:00:32]} 8. d3 {[%emt 0:01:24]} d6 {[%emt 0:00:11]} 9. c3 {[%emt 0:01:01]} Nxd5 {[%emt 0:05:14]} 10. exd5 {[%emt 0:05:29]} Ne7 {[%emt 0:01:06]} 11. d4 {[%emt 0:01:24]} exd4 {[%emt 0:04:56]} 12. cxd4 {[%emt 0:00:08]} Nxd5 {[%emt 0:01:57]} 13. dxc5 {[%emt 0:00:11]} dxc5 {[%emt 0:00:10]} 14. Qb3 {[%emt 0:03:10]} Nb4 {[%emt 0:13:35]} 15. Rd1 {[%emt 0:06:59]} Qa5 {[%emt 0:00:52]} 16. Ng5 {[%emt 0:03:21]} Bg4 {[%emt 0:04:04]} 17. Bf3 {[%emt 0:01:41]} Bxf3 {[%emt 0:00:43]} 18. Qxf3 {[%emt 0:01:08]} Nc2 {[%emt 0:08:53]} 19. Bd2 {[%emt 0:00:32]} Qa6 {[%emt 0:00:19]} 20. Rab1 {[%emt 0:01:47]} Nd4 {[%emt 0:01:52]} 21. Qg4 {[%emt 0:04:24]} h6 {[%emt 0:08:12]} 22. Nh3 {[%emt 0:01:16]} f5 {[%emt 0:00:33]} 0-1

[Event "56th Rubinstein Memorial C 2020"]
[Site "Polanica Zdroj"]
[Date "2020.08.18"]
[Round "4.6"]
[White "Janzer, Hubert"]
[Black "Raczek, Krzysztof"]
[Result "1-0"]
[ECO "A45"]
[WhiteElo "1893"]
[BlackElo "1712"]
[Annotator "NA"]
[PlyCount "117"]
[EventDate "2020.08.15"]
[EventType "swiss"]
[EventCountry "POL"]
[SourceTitle "playchess.com"]
[Source "ChessBase"]
[SourceQuality "1"]
[TimeControl "40/5400+30:1800+30"]

1. d4 Nf6 2. Bf4 g6 3. Nc3 d5 4. e3 Bg7 5. h4 c6 6. Nf3 {A45: Trompowsky Attack.} Bg4 7. Be2 h5 8. Ne5 Bxe2 9. Qxe2 Nfd7 {[#]} 10. Nd3 $146 ({Predecessor:} 10. O-O-O Nxe5 11. Bxe5 Bxe5 12. dxe5 Nd7 13. e4 e6 14. exd5 cxd5 15. Nb5 Kf8 16. f4 {1-0 (80) Gumularz,S (2513)-Petrosyan,M (2607) chess.com INT 2020}) 10... Nb6 11. O-O-O N8d7 12. g4 hxg4 13. Qxg4 Nf6 14. Qg2 Nc4 15. Rdg1 Qa5 16. a4 Nh5 17. Bh2 Qd8 18. b3 Nd6 19. Ne2 Nf5 20. Be5 Bxe5 21. Nxe5 Qd6 22. Kb2 Rh7 23. c4 O-O-O 24. cxd5 cxd5 25. Rc1+ Kb8 26. Rc5 Nf6 27. Nf4 e6 28. Nfd3 Ne4 29. Rc2 a6 30. Nc5 Nxc5 $11 31. Rxc5 Qe7 32. Rhc1 Nxh4 33. Qh2 Qd6 34. Rc8+ Ka7 35. R8c7 Ka8 36. R1c6 bxc6 37. Nxc6 f6 38. Rc8+ Rxc8 39. Qg3 Qf4 40. Qxf4 Rd7 41. Qd6 Rdc7 42. Nb4 a5 43. Qa6+ Kb8 44. Qb6+ Rb7 45. Nc6+ Rxc6 46. Qxc6 Nf3 47. Qxe6 Nd2 48. Qd6+ Ka8 49. Qxd5 Nxb3 50. Kc3 Ka7 51. Qe6 Rb6 52. Qe7+ Ka6 53. d5 Nc1 54. d6 Na2+ 55. Kc4 Rc6+ 56. Kd4 Nb4 57. d7 Rc7 58. Qd6+ Nc6+ 59. Kd5 1-0

[Event "56th Rubinstein Memorial C 2020"]
[Site "Polanica Zdroj"]
[Date "2020.08.18"]
[Round "4.7"]
[White "Bartlomowicz, Jakub"]
[Black "Lewandrowski, Tomasz"]
[Result "1-0"]
[ECO "B98"]
[WhiteElo "1613"]
[BlackElo "1879"]
[Annotator "NA"]
[PlyCount "43"]
[EventDate "2020.08.15"]
[EventType "swiss"]
[EventCountry "POL"]
[SourceTitle "playchess.com"]
[Source "ChessBase"]
[SourceQuality "1"]
[TimeControl "40/5400+30:1800+30"]

1. e4 {[%emt 0:00:00]} c5 {[%emt 0:00:00]} 2. Nf3 {[%emt 0:00:00]} d6 {[%emt 0:00:00]} 3. d4 {[%emt 0:00:14]} cxd4 {[%emt 0:00:00]} 4. Nxd4 {[%emt 0:00:15]} Nf6 {[%emt 0:00:00]} 5. Nc3 {[%emt 0:00:40]} a6 {[%emt 0:00:14]} 6. Bg5 {[%emt 0:00:54]} e6 {[%emt 0:00:50]} 7. f4 {[%emt 0:01:02]} Be7 {[%emt 0:00:49]} 8. Qf3 {[%emt 0:01:00]} h6 {[%emt 0:03:13]} 9. Bh4 {[%emt 0:01:45]} g5 {[%emt 0:04:56]} 10. fxg5 {[%emt 0:01:56]} Ng8 {[%emt 0:00:10] [#] B98: Sicilian Najdorf: 6 Bg5 e6 7 f4 Be7, sidelines.} 11. O-O-O $146 {[%emt 0:00:49]} ({Predecessor:} 11. Bb5+ axb5 12. O-O Rh7 13. g6 fxg6 14. Qg4 Rg7 15. Bxe7 Kxe7 16. Rae1 e5 17. Nd5+ Ke8 18. Ne6 {1-0 (18) Bongers,E-Belle,E (2075) Soest 1995}) 11... hxg5 {[%emt 0:01:23]} 12. Bg3 {[%emt 0:01:43]} Nc6 {[%emt 0:01:08]} 13. Nxc6 {[%emt 0:04:07]} bxc6 {[%emt 0:00:10]} 14. Bxd6 {[%emt 0:01:14]} Qb6 {[%emt 0:04:06]} 15. Bxe7 {[%emt 0:01:00]} Kxe7 {[%emt 0:00:58]} 16. Qg3 {[%emt 0:01:30]} f6 {[%emt 0:06:22]} 17. e5 {[%emt 0:02:16]} Qa5 {[%emt 0:01:00]} 18. exf6+ {[%emt 0:00:34]} Nxf6 {[%emt 0:00:11]} 19. Qd6+ {[%emt 0:00:27]} Kf7 {[%emt 0:00:23]} 20. Bc4 {[%emt 0:00:38]} Ra7 {[%emt 0:02:00]} 21. Rhf1 $18 {[%emt 0:00:25]} Rd7 {[%emt 0:02:45]} 22. Bxe6+ {[%emt 0:00:08]} 1-0

[Event "56th Rubinstein Memorial C 2020"]
[Site "Polanica Zdroj"]
[Date "2020.08.18"]
[Round "4.8"]
[White "Plichta, Krzysztof"]
[Black "Iwanczuk, Krzysztof"]
[Result "1/2-1/2"]
[ECO "B03"]
[WhiteElo "1605"]
[BlackElo "1929"]
[Annotator "ChessBase"]
[PlyCount "97"]
[EventDate "2020.08.15"]
[EventType "swiss"]
[EventCountry "POL"]
[SourceTitle "playchess.com"]
[Source "ChessBase"]
[SourceQuality "1"]
[TimeControl "40/5400+30:1800+30"]

1. e4 {[%emt 0:03:10]} Nf6 {[%emt 0:00:00]} 2. e5 {[%emt 0:00:20]} Nd5 {[%emt 0:00:04]} 3. d4 {[%emt 0:00:14]} d6 {[%emt 0:00:07]} 4. Bc4 {[%emt 0:00:26]} c6 {[%emt 0:00:10]} 5. Nf3 {[%emt 0:11:35]} dxe5 {[%emt 0:00:08]} 6. Nxe5 {[%emt 0:00:56]} Nd7 {[%emt 0:00:09]} 7. Nc3 {[%emt 0:11:45]} Nxe5 {[%emt 0:00:45]} 8. dxe5 {[%emt 0:00:55]} Be6 {[%emt 0:00:55]} 9. Nxd5 {[%emt 0:02:39]} Bxd5 {[%emt 0:01:34]} 10. Bxd5 {[%emt 0:01:05]} cxd5 {[%emt 0:01:54]} 11. Be3 {[%emt 0:02:50]} e6 {[%emt 0:00:31]} 12. O-O {[%emt 0:00:41]} Be7 {[%emt 0:02:01]} 13. c4 {[%emt 0:01:51]} O-O {[%emt 0:15:21]} 14. cxd5 {[%emt 0:00:43]} Qxd5 {[%emt 0:00:24]} 15. Qxd5 {[%emt 0:00:21]} exd5 {[%emt 0:00:06]} 16. Rfd1 {[%emt 0:03:03]} Rfd8 {[%emt 0:00:48]} 17. Rd3 {[%emt 0:02:41]} f6 {[%emt 0:00:30]} 18. exf6 {[%emt 0:00:48]} Bxf6 {[%emt 0:00:30]} 19. Bd4 {[%emt 0:00:23]} Bxd4 {[%emt 0:01:01]} 20. Rxd4 {[%emt 0:00:07]} Rac8 {[%emt 0:00:14]} 21. Rd2 {[%emt 0:01:17]} Kf7 {[%emt 0:01:04]} 22. Kf1 {[%emt 0:02:08]} Ke6 {[%emt 0:00:55]} 23. Re1+ {[%emt 0:00:20]} Kd6 {[%emt 0:00:33]} 24. Red1 {[%emt 0:00:25]} Ke5 {[%emt 0:02:01]} 25. Re1+ {[%emt 0:01:17]} Kf6 {[%emt 0:00:36]} 26. Red1 {[%emt 0:05:56]} Rc5 {[%emt 0:02:32]} 27. Ke2 {[%emt 0:02:20]} a5 {[%emt 0:06:19]} 28. Kd3 {[%emt 0:05:23]} a4 {[%emt 0:19:31]} 29. Re2 {[%emt 0:08:29]} a3 {[%emt 0:01:10]} 30. Rde1 {[%emt 0:00:18]} axb2 {[%emt 0:05:15]} 31. Rxb2 {[%emt 0:00:50]} Rd7 {[%emt 0:03:07]} 32. Reb1 {[%emt 0:06:46]} Rcc7 33. Rb6+ Ke7 {[%emt 0:01:37]} 34. Re1+ {[%emt 0:02:21]} Kd8 {[%emt 0:00:36]} 35. Rb5 {[%emt 0:00:37]} d4 {[%emt 0:02:12]} 36. Rb3 {[%emt 0:02:14]} Rc5 {[%emt 0:00:37]} 37. Re4 {[%emt 0:03:46]} Rc1 {[%emt 0:00:39]} 38. Rb4 {[%emt 0:02:03]} Rd1+ {[%emt 0:00:51]} 39. Ke2 {[%emt 0:02:48]} Ra1 {[%emt 0:01:41]} 40. Rb2 {[%emt 0:00:00]} Rc1 {[%emt 0:00:00]} 41. h4 {[%emt 0:04:58]} Kc7 {[%emt 0:03:33]} 42. Kd2 {[%emt 0:00:31]} Rc4 {[%emt 0:01:00]} 43. Rc2 {[%emt 0:01:26]} b5 {[%emt 0:02:12]} 44. Kd3 {[%emt 0:00:38]} Rxc2 {[%emt 0:00:10]} 45. Kxc2 {[%emt 0:00:07]} Kc6 {[%emt 0:00:11]} 46. Kd3 {[%emt 0:00:31]} Ra7 {[%emt 0:01:14]} 47. Re2 {[%emt 0:01:04]} Kd5 {[%emt 0:00:25]} 48. Rb2 {[%emt 0:03:36]} Ra3+ {[%emt 0:00:44]} 49. Rb3 {[%emt 0:00:26]} 1/2-1/2

[Event "56th Rubinstein Memorial C 2020"]
[Site "Polanica Zdroj"]
[Date "2020.08.18"]
[Round "4.9"]
[White "Szopa, Emilia"]
[Black "Kawalko, Adam"]
[Result "1/2-1/2"]
[ECO "B92"]
[WhiteElo "1628"]
[BlackElo "1950"]
[Annotator "ChessBase"]
[PlyCount "94"]
[EventDate "2020.08.15"]
[EventType "swiss"]
[EventCountry "POL"]
[SourceTitle "playchess.com"]
[Source "ChessBase"]
[SourceQuality "1"]
[TimeControl "40/5400+30:1800+30"]

1. e4 {[%emt 0:00:00]} c5 {[%emt 0:00:00]} 2. Nf3 {[%emt 0:00:03]} d6 {[%emt 0:00:00]} 3. d4 {[%emt 0:00:11]} cxd4 {[%emt 0:00:03]} 4. Nxd4 {[%emt 0:00:07]} Nf6 {[%emt 0:00:30]} 5. Nc3 {[%emt 0:00:07]} a6 {[%emt 0:00:14]} 6. Be2 {[%emt 0:00:36]} e5 {[%emt 0:00:50]} 7. Nb3 {[%emt 0:00:28]} Be7 {[%emt 0:00:56]} 8. Be3 {[%emt 0:00:59]} O-O {[%emt 0:03:42]} 9. f3 {[%emt 0:01:22]} Be6 {[%emt 0:01:45]} 10. a4 {[%emt 0:07:14]} Qc7 {[%emt 0:04:10]} 11. O-O {[%emt 0:01:36]} Rd8 {[%emt 0:02:12]} 12. a5 {[%emt 0:03:21]} Nbd7 {[%emt 0:01:19]} 13. Nd5 {[%emt 0:02:49]} Bxd5 {[%emt 0:06:27]} 14. exd5 {[%emt 0:00:20]} b6 {[%emt 0:04:06]} 15. c4 {[%emt 0:03:12]} Nc5 {[%emt 0:04:32]} 16. axb6 {[%emt 0:01:15]} Qxb6 {[%emt 0:00:53]} 17. Nxc5 {[%emt 0:00:34]} dxc5 {[%emt 0:00:12]} 18. b3 {[%emt 0:01:32]} Rdb8 {[%emt 0:02:01]} 19. Rb1 {[%emt 0:01:14]} a5 {[%emt 0:03:10]} 20. Qc2 {[%emt 0:01:44]} Bd6 {[%emt 0:03:15]} 21. Bd3 {[%emt 0:04:39]} Qc7 {[%emt 0:02:07]} 22. Bg5 {[%emt 0:06:57]} e4 {[%emt 0:07:38]} 23. fxe4 {[%emt 0:02:34]} Bxh2+ {[%emt 0:03:03]} 24. Kh1 {[%emt 0:00:03]} Ng4 {[%emt 0:03:03]} 25. Rf3 {[%emt 0:05:06]} h6 {[%emt 0:07:48]} 26. Bd2 {[%emt 0:06:57]} Bd6 {[%emt 0:04:11]} 27. Rbf1 {[%emt 0:03:21]} Qe7 {[%emt 0:07:25]} 28. Rh3 {[%emt 0:05:36]} Be5 {[%emt 0:03:57]} 29. Qd1 {[%emt 0:05:21]} Nf6 {[%emt 0:01:48]} 30. Bc2 {[%emt 0:01:01]} Rb6 {[%emt 0:01:12]} 31. Qe1 {[%emt 0:01:34]} Rba6 {[%emt 0:01:27]} 32. Bf4 {[%emt 0:01:06]} Nd7 {[%emt 0:01:10]} 33. Rhf3 {[%emt 0:02:07]} Bxf4 {[%emt 0:02:19]} 34. Rxf4 {[%emt 0:00:15]} Ne5 {[%emt 0:01:11]} 35. Rf5 {[%emt 0:01:44]} Rg6 {[%emt 0:01:20]} 36. Bd1 {[%emt 0:05:16]} Raa6 {[%emt 0:03:33]} 37. Bh5 {[%emt 0:03:29]} Rgf6 {[%emt 0:01:32]} 38. Qg3 {[%emt 0:01:05]} g6 {[%emt 0:02:06]} 39. Be2 {[%emt 0:02:32]} Nd7 {[%emt 0:01:08]} 40. Rxf6 {[%emt 0:00:00]} Rxf6 {[%emt 0:00:00]} 41. Rxf6 {[%emt 0:02:30]} Qxf6 {[%emt 0:03:33]} 42. Qh3 {[%emt 0:04:44]} Qa1+ {[%emt 0:01:56]} 43. Kh2 {[%emt 0:00:08]} Qe5+ {[%emt 0:00:12]} 44. Kh1 {[%emt 0:01:57]} Qa1+ {[%emt 0:02:18]} 45. Kh2 {[%emt 0:00:08]} Qe5+ {[%emt 0:00:27]} 46. Kh1 {[%emt 0:01:31]} Nf6 {[%emt 0:07:54]} 47. Bf3 {[%emt 0:04:38]} Qa1+ {[%emt 0:00:41]} 1/2-1/2